bitfinex/quotes_SOLUSD_20240601
["timestamp","ask_amount","ask_price","bid_price","bid_amount"]
[1717228861737,5.5,166.94,166.91,0.17]
[1717228863565,5.5,166.95,166.91,0.17]
[1717228865464,2.2159,166.97,166.91,0.17]
[1717228865645,5.5,166.96,166.91,0.34]
[1717228865850,5.5,166.96,166.92,0.17]
[1717228867866,5.5,166.99,166.93,66.4735]
[1717228868043,5.5,166.99,166.94,6.8135]
[1717228869868,22.0,167.04,166.94,6.8135]
[1717228870046,2.2153,167.02,166.94,6.8135]
[1717228870252,5.5,166.99,166.95,6.4735]
[1717228871041,2.2153,167.02,166.94,42.7635]
[1717228871240,2.2153,167.02,166.94,48.2635]
[1717228871463,2.2153,167.02,166.94,42.7635]
[1717228871464,5.5,167.0,166.94,42.7635]
[1717228873844,2.2152,167.03,166.94,42.7635]
[1717228874073,0.8119402,167.06,166.96,5.5]
[1717228874269,5.5,167.02,166.97,0.34]
[1717228874455,5.5,167.03,166.99,6.4735]
[1717228876471,5.5,167.01,166.99,6.4735]
[1717228876674,5.5,167.02,166.99,6.4735]
[1717228877367,2.215,167.04,166.99,6.4735]
[1717228877571,3.0267402,167.06,167.0,6.8135]
[1717228877752,3.0267402,167.06,167.01,6.4735]
[1717228877753,5.5,167.04,167.01,6.4735]
[1717228878460,5.5,167.04,167.02,0.30090689]
[1717228878667,5.5,167.04,167.01,6.4735]
[1717228879052,2.2149,167.05,167.01,6.4735]
[1717228879383,5.5,167.03,167.01,6.4735]
[1717228881475,3.0267402,167.06,167.01,6.4735]
[1717228881659,5.5,167.03,167.01,6.4735]
[1717228883984,3.0267402,167.06,167.01,15.9902]
[1717228884188,3.0267402,167.06,167.01,6.4735]
[1717228884189,5.5,167.03,167.01,6.4735]
[1717228888272,5.5,167.02,166.99,6.721]
[1717228888587,5.5,167.02,166.99,6.551]
[1717228888878,3.0267402,167.06,166.96,6.381]
[1717228888879,5.5,167.0,166.96,6.381]
[1717228889058,5.5,166.99,166.96,16.0042]
[1717228889259,7.715,167.04,166.96,16.0042]
[1717228889260,7.715,167.04,166.97,6.381]
[1717228889459,5.5,167.0,166.97,6.381]
[1717228889693,7.715,167.04,166.97,6.381]
[1717228889895,24.215,167.04,166.97,6.381]
[1717228890257,2.215,167.04,166.97,6.381]
[1717228890458,24.215,167.04,166.97,6.381]
[1717228890676,22.0,167.04,166.97,6.381]
[1717228890865,5.5,167.01,166.98,0.17]
[1717228891070,2.2149,167.05,166.98,0.34]
[1717228891290,5.5,167.02,166.99,0.17]
[1717228891497,5.5,167.02,166.99,6.551]
[1717228893381,3.0266402,167.06,166.99,6.551]
[1717228893580,3.0266402,167.06,167.0,16.0042]
[1717228893581,5.5,167.03,167.0,16.0042]
[1717228893884,5.5,167.03,167.01,6.381]
[1717228894074,5.5,167.04,167.01,6.381]
[1717228894572,0.8119402,167.06,166.95,6.381]
[1717228894779,5.5,167.0,166.94,102.331]
[1717228894984,24.215,167.04,166.95,20.0]
[1717228895791,5.5,167.01,166.96,0.17]
[1717228895994,5.5,167.01,166.96,0.34]
[1717228896180,5.5,167.01,166.97,6.381]
[1717228896508,5.5,167.0,166.97,6.381]
[1717228897197,5.5,166.99,166.93,6.381]
[1717228897502,5.5,166.98,166.94,6.381]
[1717228898276,5.5,166.98,166.95,6.381]
[1717228901300,5.0,166.98,166.95,6.381]
[1717228906005,5.0,166.98,166.94,0.17]
[1717228906194,5.0,166.98,166.94,0.34]
[1717228912490,5.0,166.98,166.93,20.34]
[1717228913022,5.0,166.98,166.93,26.8198]
[1717228913715,2.2152,167.03,166.93,26.8198]
[1717228913919,5.5,166.98,166.93,26.8198]
[1717228914313,5.5,166.99,166.93,26.8198]
[1717228923796,2.2151,167.03,166.94,95.95]
[1717228924006,5.5,167.0,166.96,60.0]
[1717228924198,5.5,167.0,166.97,0.34]
[1717228924618,24.215,167.04,166.97,0.34]
[1717228924916,5.5,167.0,166.97,0.34]
[1717228925419,2.2151,167.03,166.97,0.34]
[1717228925715,5.5,167.0,166.97,0.34]
[1717228928115,2.2151,167.03,166.97,0.34]
[1717228928299,5.5,167.0,166.97,0.34]
[1717228930507,5.5,167.0,166.96,0.34]
[1717228932109,2.2151,167.03,166.96,0.34]
[1717228932309,5.5,167.0,166.96,0.34]
[1717228933217,5.5,167.01,166.96,0.34]
[1717228933397,2.2151,167.03,166.96,0.34]
[1717228933398,5.5,167.0,166.96,0.34]
[1717228934222,5.5,167.0,166.96,9.33123936]
[1717228936030,5.5,167.04,166.96,8.99123936]
[1717228936320,5.5,166.97,166.93,8.99123936]
[1717228936521,5.5,166.95,166.93,8.99123936]
[1717228938006,5.5,166.94,166.93,8.99123936]
[1717228939016,5.5,166.95,166.93,8.99123936]
[1717228939328,2.2153,167.02,166.95,60.0]
[1717228939509,2.2153,167.02,166.96,0.17]
[1717228939710,5.5,166.99,166.94,15.32653936]
[1717228939919,5.5,166.99,166.94,6.3353]
[1717228940232,5.5,166.99,166.95,0.17]
[1717228941026,5.5,166.99,166.95,9.16123936]
[1717228941217,24.2151,167.04,166.96,0.17]
[1717228941405,22.0,167.04,166.96,0.17]
[1717228941605,5.5,166.99,166.96,0.17]
[1717228948325,2.2151,167.03,166.96,0.17]
[1717228948534,5.5,167.0,166.96,9.16123936]
[1717228948726,5.5,167.0,166.97,0.17]
[1717228951126,3.7419402,167.06,166.97,0.17]
[1717228951433,22.0,167.04,166.97,0.17]
[1717228952539,24.215,167.04,166.97,0.17]
[1717228953442,2.2151,167.03,166.97,0.17]
[1717228954742,24.215,167.04,166.97,0.17]
[1717228954942,24.215,167.04,166.97,60.17]
[1717228955126,24.215,167.04,166.98,0.17]
[1717228955441,2.2151,167.03,166.98,0.17]
[1717228957721,2.2151,167.03,166.98,6.4606]
[1717228960239,2.2151,167.03,166.99,0.17]
[1717228960447,5.5,167.01,166.99,6.4606]
[1717228960945,5.5,167.0,166.98,0.17]
[1717228961119,5.5,167.0,166.97,6.6306]
[1717228966147,24.215,167.04,166.97,6.6306]
[1717228969494,2.215,167.04,166.97,6.6306]
[1717228969637,5.5,167.0,166.97,6.6306]
[1717228969952,24.215,167.04,166.97,6.6306]
[1717228974563,2.2152,167.03,166.96,8.99128711]
[1717228975136,5.5,166.97,166.95,8.99128711]
[1717228975342,5.5,166.96,166.95,8.99128711]
[1717228975549,5.5,166.96,166.94,8.99128711]
[1717228977164,5.5,166.96,166.93,15.41618711]
[1717228981559,5.5,166.96,166.92,0.34]
[1717228981560,5.5,166.94,166.92,8.99128711]
[1717228981758,5.5,166.93,166.92,8.99128711]
[1717228982465,5.5,166.93,166.91,8.99128711]
[1717228982774,5.5,166.92,166.91,8.99128711]
[1717228984169,5.5,166.92,166.91,8.99381874]
[1717228987671,5.5,166.92,166.91,8.99383695]
[1717228991378,5.5,166.92,166.9,8.99383695]
[1717228991577,5.5,166.91,166.9,8.99383695]
[1717228996085,2.2162,166.95,166.9,8.99383695]
[1717228996381,22.0,166.96,166.9,8.99383695]
[1717228996681,5.5,166.94,166.91,0.17]
[1717228996883,5.5,166.94,166.91,6.5694]
[1717228997367,5.5,166.94,166.92,6.3994]
[1717228997689,5.5,166.95,166.92,6.3994]
[1717228998068,2.2157,166.99,166.92,6.3994]
[1717228998266,5.5,166.95,166.92,6.3994]
[1717228999061,2.2157,166.99,166.92,6.3994]
[1717228999262,5.5,166.95,166.92,6.3994]
[1717229001186,2.2157,166.99,166.92,6.3994]
[1717229001487,5.5,166.95,166.92,6.3994]
[1717229001784,5.5,166.95,166.93,6.3994]
[1717229004174,2.2157,166.99,166.93,6.3994]
[1717229004377,5.5,166.95,166.93,6.3994]
[1717229004586,2.2157,166.99,166.93,6.3994]
[1717229004786,5.5,166.96,166.92,76.6469]
[1717229004986,2.2157,166.99,166.94,6.5776]
[1717229005178,5.5,166.96,166.94,6.5776]
[1717229005687,5.5,166.96,166.93,23.1311]
[1717229005880,2.2156,167.0,166.94,6.5776]
[1717229005881,5.5,166.97,166.94,6.5776]
[1717229008093,5.5,166.97,166.93,16.7235]
[1717229008284,5.5,166.98,166.95,6.5776]
[1717229008968,2.2156,167.0,166.95,6.5776]
[1717229009293,5.5,166.99,166.95,6.5776]
[1717229010281,5.5,166.99,166.96,6.5776]
[1717229011300,2.2151,167.03,166.97,6.9176]
[1717229011595,5.5,167.01,166.98,6.5776]
[1717229011998,5.5,167.0,166.98,6.5776]
[1717229012804,2.215,167.04,166.98,6.5776]
[1717229012989,5.5,167.01,166.98,6.5776]
[1717229015889,0.8119402,167.06,167.02,95.95]
[1717229016081,0.8119402,167.06,167.0,5.5]
[1717229016082,0.8119402,167.06,167.05,42.5276]
[1717229016290,0.8119402,167.06,167.05,42.8676]
[1717229020897,0.8119402,167.06,167.05,6.9176]
[1717229021096,0.8119402,167.06,167.02,66.5776]
[1717229021675,0.8119402,167.06,167.03,6.5776]
[1717229022085,0.8119402,167.06,167.03,42.5276]
[1717229022799,0.8119402,167.06,167.04,0.17]
[1717229023302,0.8119402,167.06,167.04,0.34]
[1717229025592,0.8119402,167.06,167.04,60.34]
[1717229025793,0.8119402,167.06,167.04,0.34]
[1717229026507,0.8119402,167.06,167.04,60.34]
[1717229026701,0.8119402,167.06,167.04,66.8589]
[1717229029186,0.8119402,167.06,167.05,6.5189]
[1717229029492,0.8119402,167.06,167.05,6.8589]
[1717229031588,0.8119402,167.06,167.05,57.8192]
[1717229031892,0.8119402,167.06,167.05,63.3192]
[1717229032507,0.8119402,167.06,167.05,42.8089]
[1717229033895,0.8119402,167.06,167.05,0.34]
[1717229035901,0.8119402,167.06,167.04,0.34]
[1717229037712,0.8119402,167.06,167.04,0.17]
[1717229037917,0.8119402,167.06,167.01,42.4689]
[1717229038117,0.8119402,167.06,167.02,0.17]
[1717229039317,0.8119402,167.06,167.02,0.34]
[1717229039540,5.5,167.04,166.98,95.95]
[1717229040717,0.8119402,167.06,166.97,35.95]
[1717229040718,5.5,167.03,166.97,35.95]
[1717229041426,5.5,167.02,166.97,35.95]
[1717229042007,5.5,167.02,166.98,0.17]
[1717229042420,5.5,167.02,166.98,0.34]
[1717229042623,5.5,167.01,166.95,5.5]
[1717229042798,2.93,167.05,166.94,104.94013783]
[1717229042799,5.5,166.99,166.94,35.95]
[1717229043422,22.0,167.04,166.94,95.95]
[1717229043722,24.215,167.04,166.94,35.95]
[1717229044424,24.215,167.04,166.95,0.34]
[1717229044920,2.2151,167.03,166.95,0.34]
[1717229050527,2.2151,167.03,166.94,8.99133055]
[1717229052809,22.0,167.04,166.95,60.34]
[1717229053013,5.5,167.01,166.95,60.34]
[1717229053215,5.5,167.0,166.95,69.33133055]
[1717229055031,5.145,167.05,166.97,60.0]
[1717229055232,5.5,167.02,166.98,0.34]
[1717229055725,5.145,167.05,166.98,0.34]
[1717229055925,5.5,167.02,166.98,0.34]
[1717229057128,0.8119402,167.06,166.99,42.0406]
[1717229057435,5.5,167.05,167.0,0.34]
[1717229057610,5.5,167.04,167.0,0.34]
[1717229061038,5.5,167.05,167.0,0.34]
[1717229062031,0.8119402,167.06,167.02,60.0]
[1717229062237,0.8119402,167.06,167.03,0.34]
[1717229062238,6.3119402,167.06,167.03,0.34]
[1717229062745,0.8119402,167.06,167.03,0.34]
[1717229066940,5.5,167.05,167.03,0.34]
[1717229067135,5.5,167.05,167.02,0.34]
[1717229067645,0.8119402,167.06,167.02,0.34]
[1717229067823,6.3119402,167.06,167.02,0.34]
[1717229073448,5.5,167.05,167.02,0.34]
[1717229073651,5.5,167.05,167.01,0.34]
[1717229074323,5.5,167.05,167.0,0.34]
[1717229074523,5.5,167.05,167.0,60.34]
[1717229074931,6.3119402,167.06,167.0,60.34]
[1717229076547,6.3119402,167.06,167.01,35.95]
[1717229076846,6.3119402,167.06,167.02,0.34]
[1717229077532,0.8119402,167.06,167.02,60.34]
[1717229077734,0.8119402,167.06,167.02,96.29]
[1717229080149,0.8119402,167.06,167.02,60.34]
[1717229083955,0.8119402,167.06,167.03,0.36781554]
[1717229084136,0.8119402,167.06,167.04,0.34]
[1717229087549,0.8119402,167.06,167.03,0.34]
[1717229087752,0.8119402,167.06,167.04,60.0]
[1717229087939,0.8119402,167.06,167.05,0.34]
[1717229090934,0.8119402,167.06,167.05,0.70777094]
[1717229101868,6.3119402,167.06,167.05,0.36777094]
[1717229103446,9.2419402,167.06,167.05,0.36777094]
[1717229103657,2.2149,167.05,166.98,8.98922913]
[1717229103883,5.5,167.02,166.98,8.98922913]
[1717229104867,5.5,167.02,166.99,0.34]
[1717229106166,5.5,167.03,166.99,0.34]
[1717229106877,5.5,167.04,166.99,0.34]
[1717229107069,5.5,167.04,166.99,0.70790308]
[1717229111370,5.5,167.03,166.99,0.70790308]
[1717229114586,5.5,167.03,166.99,1.90402991]
[1717229114778,5.5,167.03,166.99,0.70790308]
[1717229115961,5.5,167.02,166.99,0.70790308]
[1717229116158,5.5,167.03,166.99,0.70790308]
[1717229118680,5.9567402,167.06,166.99,0.70790308]
[1717229118861,5.5,167.03,166.99,0.70790308]
[1717229119066,5.9567402,167.06,166.99,0.70790308]
[1717229119264,5.5,167.03,166.99,0.70790308]
[1717229120082,5.9567402,167.06,166.99,0.70790308]
[1717229120254,5.5,167.04,166.99,0.70790308]
[1717229121583,0.8119402,167.06,167.0,60.0]
[1717229121882,0.8119402,167.06,167.02,60.0]
[1717229122083,0.8119402,167.06,167.03,0.95828469]
[1717229122684,0.8119402,167.06,167.03,0.34]
[1717229124194,6.3119402,167.06,167.03,0.34]
[1717229125389,0.8119402,167.06,167.03,0.34]
[1717229137094,0.8119402,167.06,167.03,6.3483]
[1717229137291,0.8119402,167.06,167.04,60.0]
[1717229137494,0.8119402,167.06,167.05,0.34]
[1717229146205,0.8119402,167.06,167.05,2.73362635]
[1717229149810,0.8119402,167.06,167.05,0.34]
[1717229156215,0.8119402,167.06,167.05,63.2008]
[1717229160304,5.5,167.13,167.08,60.0]
[1717229160508,5.5,167.12,167.08,60.0]
[1717229161124,5.5,167.13,167.08,60.0]
[1717229161718,5.5,167.13,167.09,0.34]
[1717229162016,5.5,167.1,167.03,60.0]
[1717229162201,5.5,167.08,167.03,60.0]
[1717229162402,2.2141,167.11,167.05,60.0]
[1717229162602,5.5,167.09,167.05,60.0]
[1717229163421,5.5,167.09,167.06,0.17]
[1717229163604,5.5,167.09,167.06,0.34]
[1717229165023,5.5,167.1,167.06,0.34]
[1717229165213,5.5,167.11,167.06,0.34]
[1717229165911,5.5,167.11,167.06,0.71278335]
[1717229166103,2.214,167.12,167.07,60.0]
[1717229166305,5.5,167.11,167.08,0.71273872]
[1717229166725,5.5,167.12,167.08,0.71273872]
[1717229167825,7.7139,167.12,167.08,0.71273872]
[1717229168009,5.5,167.11,167.08,1.69084672]
[1717229168520,5.5,167.09,167.03,60.0]
[1717229168706,5.5,167.08,167.03,60.0]
[1717229169811,5.5,167.08,167.04,0.17]
[1717229170117,5.5,167.08,167.04,0.34]
[1717229170707,5.5,167.06,167.02,8.98327664]
[1717229172232,5.5,167.06,167.03,9.32327664]
[1717229172413,5.5,167.07,167.03,69.32327664]
[1717229172827,5.5,167.08,167.03,69.32327664]
[1717229174637,2.2142,167.1,167.05,60.0]
[1717229174830,5.5,167.08,167.06,0.34]
[1717229175136,4.4274,167.14,167.06,0.34]
[1717229175137,5.5,167.09,167.06,0.34]
[1717229175634,5.5,167.08,167.03,8.98327664]
[1717229175828,5.5,167.08,167.04,0.34]
[1717229176024,5.5,167.08,167.04,60.34]
[1717229176422,5.5,167.07,167.04,60.34]
[1717229176815,5.5,167.07,167.04,0.34]
[1717229177728,5.5,167.07,167.04,60.34]
[1717229177920,5.5,167.08,167.04,0.34]
[1717229178314,5.5,167.08,167.04,9.32327664]
[1717229178934,2.2144,167.09,167.04,9.32327664]
[1717229179131,5.5,167.07,167.04,9.32327664]
[1717229182837,2.2144,167.09,167.04,9.32327664]
[1717229183141,5.5,167.06,167.04,9.32327664]
[1717229184344,2.2143,167.09,167.04,9.32327664]
[1717229184541,5.5,167.07,167.04,9.32327664]
[1717229184842,2.2143,167.09,167.04,9.32327664]
[1717229185150,5.5,167.07,167.04,9.32327664]
[1717229186727,2.2143,167.09,167.04,9.32327664]
[1717229187027,5.5,167.07,167.04,9.32327664]
[1717229188050,2.2142,167.11,167.05,60.0]
[1717229188241,5.5,167.1,167.06,0.34]
[1717229188441,2.2142,167.11,167.06,0.34]
[1717229188636,5.5,167.1,167.06,0.34]
[1717229189049,7.7142,167.1,167.06,0.34]
[1717229189251,5.5,167.09,167.06,0.34]
[1717229190650,2.2142,167.1,167.06,0.34]
[1717229191145,5.5,167.09,167.06,0.34]
[1717229191733,2.2142,167.1,167.06,0.34]
[1717229191928,5.5,167.09,167.06,0.34]
[1717229194259,2.2142,167.1,167.06,0.34]
[1717229194445,5.5,167.09,167.06,0.34]
[1717229196161,2.2142,167.1,167.06,0.34]
[1717229196548,7.7142,167.1,167.06,0.34]
[1717229197539,5.5,167.09,167.06,0.34]
[1717229198462,7.7144,167.09,167.06,0.34]
[1717229199943,5.5,167.09,167.06,0.34]
[1717229200145,5.5,167.09,167.06,6.5784]
[1717229206168,2.2142,167.1,167.06,6.5784]
[1717229206462,5.5,167.09,167.06,6.5784]
[1717229207770,2.2142,167.1,167.06,6.5784]
[1717229207950,5.5,167.09,167.06,6.5784]
[1717229208968,4.4267,167.17,167.09,60.0]
[1717229209273,5.5,167.12,167.1,0.34]
[1717229209866,7.7139,167.13,167.1,0.34]
[1717229210057,5.5,167.13,167.1,0.34]
[1717229210572,5.5,167.12,167.1,0.34]
[1717229210772,5.5,167.11,167.1,0.34]
[1717229212673,4.4267,167.17,167.1,0.34]
[1717229212858,5.5,167.12,167.1,0.34]
[1717229214354,5.5,167.13,167.1,0.34]
[1717229216876,2.2137,167.14,167.1,0.34]
[1717229217190,5.5,167.13,167.1,0.34]
[1717229217364,2.2135,167.15,167.1,0.34]
[1717229217881,5.5,167.13,167.1,0.34]
[1717229218879,5.5,167.12,167.1,0.34]
[1717229221583,5.5,167.12,167.09,60.0]
[1717229221584,5.5,167.11,167.05,68.98043278]
[1717229221789,5.5,167.1,167.06,6.0611]
[1717229222778,5.5,167.1,167.07,0.34]
[1717229222979,5.5,167.1,167.07,60.34]
[1717229223685,5.5,167.11,167.07,60.34]
[1717229224180,2.2137,167.14,167.07,66.4011]
[1717229224386,5.5,167.12,167.07,66.4011]
[1717229225073,5.5,167.11,167.07,0.34]
[1717229225275,5.5,167.11,167.08,0.34]
[1717229225479,5.5,167.11,167.06,0.34]
[1717229226579,5.5,167.11,167.06,6.6112]
[1717229226779,5.5,167.11,167.07,60.0]
[1717229226969,5.5,167.11,167.08,0.34]
[1717229230985,5.5,167.11,167.08,6.6112]
[1717229238696,2.2138,167.13,167.08,6.6112]
[1717229239173,5.5,167.11,167.08,6.6112]
[1717229241581,5.5,167.12,167.08,6.6112]
[1717229242980,7.7139,167.12,167.08,6.6112]
[1717229243293,2.2139,167.12,167.08,6.6112]
[1717229243469,7.7139,167.12,167.08,6.6112]
[1717229246495,5.5,167.12,167.08,6.6112]
[1717229250380,5.5,167.12,167.08,0.34]
[1717229250586,5.5,167.1,167.05,75.01442154]
[1717229250787,5.5,167.09,167.05,75.01442154]
[1717229251485,2.2139,167.12,167.05,75.01442154]
[1717229251790,5.5,167.09,167.06,0.17]
[1717229251995,2.2139,167.12,167.06,0.17]
[1717229251996,5.5,167.1,167.06,0.34]
[1717229252223,30.43,167.07,167.01,17.84009215]
[1717229252498,30.43,167.07,166.96,60.0]
[1717229252499,7.3593,167.07,166.96,60.0]
[1717229252697,7.7151,167.03,166.96,60.0]
[1717229253076,5.5,167.03,166.96,60.0]
[1717229254198,5.5,167.03,166.97,0.34]
[1717229254783,2.2149,167.05,166.99,6.0317]
[1717229254999,5.5,167.04,167.0,0.17]
[1717229255188,5.5,167.03,167.0,0.17]
[1717229255704,5.5,167.03,166.99,0.17]
[1717229255886,5.5,167.03,166.99,6.2017]
[1717229256076,5.5,167.03,167.0,0.17]
[1717229259102,5.5,167.02,167.0,0.17]
[1717229259324,5.5,167.02,166.99,0.34]
[1717229263523,5.5,167.03,166.99,0.34]
[1717229264104,5.5,167.03,166.99,6.3717]
[1717229269927,2.215,167.04,166.99,6.3717]
[1717229270436,4.4289,167.09,166.99,6.3717]
[1717229270437,2.2149,167.05,167.0,60.0]
[1717229270632,2.2149,167.05,167.01,0.34]
[1717229270840,5.5,167.03,167.01,0.34]
[1717229273231,5.5,167.03,166.98,60.0]
[1717229273425,5.5,167.03,166.99,0.34]
[1717229273615,4.4289,167.09,166.99,60.0]
[1717229273938,5.5,167.03,166.99,60.0]
[1717229274435,5.5,167.04,166.99,60.0]
[1717229274741,7.715,167.04,167.0,0.17]
[1717229274916,7.715,167.04,167.0,0.34]
[1717229275637,5.5,167.03,167.0,0.34]
[1717229276130,5.5,167.02,166.97,60.0]
[1717229276339,7.7152,167.03,166.98,0.34]
[1717229277439,7.715,167.04,166.99,76.3752]
[1717229277733,7.715,167.04,167.0,0.34]
[1717229282439,5.5,167.03,167.0,0.34]
[1717229282940,5.5,167.02,167.0,0.34]
[1717229283840,5.5,167.03,167.0,0.34]
[1717229285046,5.5,167.02,167.0,0.34]
[1717229286944,5.5,167.03,167.0,0.34]
[1717229296249,2.215,167.04,167.0,0.34]
[1717229296431,5.5,167.02,166.97,60.0]
[1717229296633,5.5,167.01,166.95,76.3752]
[1717229296937,5.5,167.0,166.93,65.5]
[1717229297732,5.5,167.0,166.94,0.17]
[1717229298052,5.5,167.0,166.94,0.34]
[1717229299146,5.5,167.0,166.95,60.0]
[1717229299345,2.2152,167.03,166.95,81.9784]
[1717229299924,5.5,167.01,166.95,81.9784]
[1717229300129,5.5,167.01,166.96,0.17]
[1717229300341,5.5,167.01,166.96,0.34]
[1717229300941,5.5,167.0,166.96,0.34]
[1717229313639,5.5,167.0,166.97,0.17]
[1717229313841,5.5,167.0,166.95,0.34]
[1717229314048,5.5,167.0,166.95,0.17]
[1717229314754,5.5,167.0,166.94,0.17]
[1717229314755,2.2155,167.01,166.93,60.0]
[1717229315068,5.5,166.97,166.93,60.0]
[1717229316068,5.5,166.97,166.94,0.17]
[1717229316275,5.5,166.98,166.94,0.34]
[1717229318346,2.99431769,167.03,166.91,66.81527942]
[1717229318347,5.5,166.95,166.91,60.36807942]
[1717229318575,5.5,166.95,166.92,0.17]
[1717229318873,5.5,166.95,166.92,0.34]
[1717229319078,5.5,166.95,166.91,0.34]
[1717229324780,5.5,166.94,166.91,0.34]
[1717229327972,5.5,166.95,166.91,0.34]
[1717229332677,5.5,166.95,166.91,0.17]
[1717229332877,5.5,166.95,166.9,0.36810147]
[1717229333081,5.5,166.95,166.91,0.34]
[1717229333377,2.2158,166.98,166.91,0.34]
[1717229333378,5.5,166.96,166.91,0.34]
[1717229336593,5.5,166.96,166.91,60.34]
[1717229340589,2.2158,166.98,166.91,60.34]
[1717229340590,5.5,166.97,166.91,60.34]
[1717229341790,5.5,166.96,166.91,60.34]
[1717229344685,2.2156,167.0,166.93,60.0]
[1717229344879,7.7157,166.99,166.94,0.34]
[1717229345080,5.5,166.98,166.94,0.34]
[1717229345993,5.5,166.98,166.94,60.34]
[1717229346192,5.5,166.98,166.94,0.34]
[1717229346371,5.5,166.98,166.94,60.0]
[1717229346693,5.5,166.98,166.95,0.34]
[1717229349696,5.5,166.98,166.91,11.5148]
[1717229349878,5.5,166.98,166.92,0.34]
[1717229350495,5.5,166.98,166.92,60.34]
[1717229351289,5.5,166.98,166.92,0.34]
[1717229351489,5.5,166.97,166.91,0.34]
[1717229351689,4.4304,167.03,166.93,60.0]
[1717229351894,5.5,166.99,166.94,0.34]
[1717229356177,2.2155,167.0,166.94,0.34]
[1717229356382,5.5,166.99,166.94,60.34]
[1717229356584,2.2155,167.0,166.94,60.34]
[1717229356883,5.5,166.99,166.94,60.34]
[1717229357893,2.2155,167.0,166.94,60.34]
[1717229358200,5.5,166.99,166.94,60.34]
[1717229359820,5.5,166.99,166.94,0.34]
[1717229360094,5.5,166.96,166.9,65.86810147]
[1717229360482,5.5,166.96,166.92,60.0]
[1717229360689,5.5,166.98,166.92,60.0]
[1717229361204,5.5,166.98,166.93,0.17]
[1717229361401,5.5,166.98,166.93,0.34]
[1717229361707,5.5,166.97,166.94,0.17]
[1717229361880,5.5,166.97,166.92,60.34]
[1717229362503,29.3601,167.04,166.92,60.34]
[1717229362504,5.5,166.98,166.92,60.34]
[1717229362697,2.2156,167.0,166.92,60.34]
[1717229362898,5.5,166.98,166.92,60.34]
[1717229363100,5.5,166.98,166.92,65.84]
[1717229364403,5.5,166.98,166.92,60.34]
[1717229370707,2.2156,167.0,166.94,60.0]
[1717229371009,5.5,166.98,166.95,0.34]
[1717229373801,5.5,166.99,166.95,0.34]
[1717229376026,5.5,166.98,166.95,0.34]
[1717229384106,5.5,166.99,166.95,0.34]